Cogmind - Beta 16 @@@ ROGUE MODE // 2025.11.01 @ 21:59:41 Player: War__Prophet Result: Destroyed by P-60 Hacker with Shock Rifle Performance ------------- Evolutions (1) 500 Regions Visited (4) 800 Robots Destroyed (68) 340 Value Destroyed (2329) 2329 Prototype IDs (0) 0 Alien Tech Used (0) 0 Bonus (754) 754 TOTAL SCORE: 4723 Bonus ------- High Alert Combat Kills 54 Entered Garrisons 200 Used RIF Installer 500 Cogmind --------- Core Integrity 0/400 Matter 172/300 Energy 158/160 System Corruption 5% Temperature Cool (90) Movement Rolling (215) Ox9 Location -9/Garrison Parts ------- > --- POWER (1) -------- Light Nuclear Core > --- PROPULSION (2) --- Wheel > --- UTILITY (2) ------ Huge Storage Unit > --- WEAPON (4) ------- Shotgun Shotgun Shotgun > --- INVENTORY (25) --- Light Nuclear Core Cesium-ion Thruster Cesium-ion Thruster Cesium-ion Thruster Cesium-ion Thruster Small Matter Pod (50) Small Matter Pod (50) Small Matter Pod (50) Small Matter Pod (50) Small Matter Pod (50) Medium Matter Pod (100) Medium Matter Pod (100) High-capacity Matter Pod (200) High-capacity Matter Pod (200) Advanced Visual Processing Unit Advanced Visual Processing Unit Targeting Computer Targeting Computer Targeting Computer Shotgun Rocket Launcher Peak State ------------ > --- POWER ------------ Light Nuclear Core > --- PROPULSION ------- Wheel Wheel > --- UTILITY ---------- Huge Storage Unit High-capacity Matter Pod > --- WEAPON ----------- Autogun Autogun Autogun Autogun > --- INVENTORY -------- Ion Engine Light Ion Engine Improved Ion Engine Wheel Compact Wheel Cesium-ion Thruster Cesium-ion Thruster Cesium-ion Thruster Cesium-ion Thruster Small Storage Unit Medium Matter Pod Medium Matter Pod High-capacity Matter Pod High-capacity Matter Pod Advanced Visual Processing Unit Advanced Visual Processing Unit Targeting Computer Targeting Computer Targeting Computer Shotgun Shotgun Shotgun Shotgun Rocket Launcher Rocket Launcher [Rating: 19] Favorites ----------- Power Improved Ion Engine Engine Improved Ion Engine Power Core Light Nuclear Core Propulsion Wheel Wheel Wheel Utility Huge Storage Unit Storage Huge Storage Unit Protection Light Armor Plating Weapon Autogun Energy Gun Beam Rifle Ballistic Gun Autogun Launcher Rocket Launcher Build | -11 -10 -9 -9 -9 ------- Run | Yrd Mat Mat Sto Gar Slots Evolved 2 | . . 2 . . Power . | . . . . . Propulsion . | . . . . . Utility . | . . . . . Weapon 2 | . . 2 . . Parts Attached 36 | 5 6 7 6 12 Power 8 | 1 1 3 1 2 Engine 6 | 1 1 3 . 1 Core 2 | . . . 1 1 Reactor . | . . . . . Propulsion 9 | 2 . 1 4 2 Treads . | . . . . . Leg . | . . . . . Wheel 9 | 2 . 1 4 2 Hover . | . . . . . Flight . | . . . . . Utility 4 | 1 1 1 . 1 Device . | . . . . . Storage 3 | 1 1 1 . . Processor . | . . . . . Hackware . | . . . . . Protection 1 | . . . . 1 Artifact . | . . . . . Weapon 15 | 1 4 2 1 7 Energy Gun 1 | . . . . 1 Energy Cannon . | . . . . . Ballistic Gun 13 | 1 4 2 1 5 Ballistic Cannon . | . . . . . Launcher 1 | . . . . 1 Special Weapon . | . . . . . Impact Weapon . | . . . . . Slashing Weapon . | . . . . . Piercing Weapon . | . . . . . Special Melee Weapon . | . . . . . Unidentified Prototypes . | . . . . . Parts Lost 12 | . . . 2 10 Power 1 | . . . . 1 Propulsion 2 | . . . . 2 Utility 2 | . . . . 2 Weapon 7 | . . . 2 5 Highest Loss Streak 3 | . . . 2 3 To Critical Strikes . | . . . . . Average Backups 22 | . 7 21 25 24 Power 1 | . . 1 3 1 Propulsion 5 | . . 5 6 5 Utility 10 | . . 8 10 12 Weapon 5 | . 5 5 6 4 Tool/Special . | . . . . . Unused Backups 22 | . . . . 22 Power 3 | . . . . 3 Propulsion 4 | . . . . 4 Utility 14 | . . . . 14 Weapon 1 | . . . . 1 Tool/Special . | . . . . . Average Slot Usage (%) 90 | . 89 99 99 83 Engine 8 | . 14 11 5 8 Core 2 | . . . 5 2 Wheel 20 | . 28 22 22 18 Storage 17 | . 20 22 22 13 Protection 4 | . . . . 8 Ballistic Gun 36 | . 25 43 43 32 Peak Build Rating 19 | 5 10 18 19 18 Average Rating 15 | 3 9 16 18 15 On Entrance 10 | . 5 10 18 17 Avg Prop Armor Cover (%) . | . . . . . Naked Turns . | . . . . . Heaviest Build 103 | 10 20 103 103 102 Greatest Support 32 | 26 26 26 26 32 Greatest Overweight (x) 6 | . . 5 5 6 Average Overweight (x) 3 | . . 4 4 3 Largest Inventory Capacity 25 | 8 8 25 25 25 Average Capacity 23 | 7 8 24 25 25 Most Carried 25 | 1 8 25 25 25 Average Carried 22 | . 7 21 24 24 Final Capacity 25 | 8 8 25 25 25 Final Carried 25 | 1 8 25 25 21 Class Distribution -------------------- 40% | Gunner 21% | Scavenger-Tank 21% | Scavenger-Mutant 8% | Mutant 6% | Scavenger-Gunner Dominant Class ---------------- Mutant | -10/Materials Gunner | -9/Materials Gunner | -9/Storage Scavenger-Tank | -9/Garrison Resources | -11 -10 -9 -9 -9 ----------- Run | Yrd Mat Mat Sto Gar Matter Collected 2828 | 219 165 827 1009 608 Remotely . | . . . . . Salvage Created 2660 | . 165 716 938 841 Parts 170 | . 8 52 58 52 Haulers Intercepted 3 | . . 2 1 . Recyclers Shooed 2 | . . 2 . . Parts Field Recycled . | . . . . . Retrieved Matter . | . . . . . Parts Self-Destructed . | . . . . . Prevented . | . . . . . Parts Restored . | . . . . . Kills | -11 -10 -9 -9 -9 ------- Run | Yrd Mat Mat Sto Gar Combat Hostiles Destroyed 47 | . 4 13 11 19 Guns 44 | . 4 13 10 17 AOE 3 | . . . 1 2 Classes Destroyed 10 | . 1 7 1 1 Worker 6 | . . 4 2 . Builder 4 | . . 1 3 . Hauler 3 | . . 2 1 . Recycler 2 | . . . 2 . Operator 2 | . . 1 1 . Watcher 4 | . . 2 2 . Swarmer 4 | . . 4 . . Grunt 28 | . 4 8 4 12 Sentry 13 | . . 1 7 5 Programmer 2 | . . . . 2 Best Kill Streak 8 | . 2 6 8 5 Combat Bots Only 5 | . 2 5 5 5 Max Kills in Single Turn 2 | . 1 2 1 2 Gunslinging 1 | . . 1 . 1 Exploded 1 | . . . 1 1 Melee . | . . . . . Uniques/NPCs Destroyed . | . . . . . Combat | -11 -10 -9 -9 -9 -------- Run | Yrd Mat Mat Sto Gar Hostile Shots Fired 178 | . 8 30 23 117 Missed 35 | . 1 5 4 25 Hits 143 | . 7 25 19 92 Projectile 143 | . 7 25 19 92 Critical Strikes 3 | . 1 1 . 1 Part Disruptions 1 | . . . . 1 Damage Taken 2061 | 2 83 276 381 1319 Core 444 | . 33 57 56 298 Absorbed by Shields . | . . . . . Core Remaining (%) 93 | 100 86 . . . Volleys Fired 138 | . 14 33 34 57 Largest 4 | . 2 4 4 4 Hottest 102 | . 46 92 92 102 Shots Fired 433 | . 28 132 136 137 Gun 430 | . 28 132 136 134 Cannon . | . . . . . Launcher 3 | . . . . 3 Special . | . . . . . Kinetic 416 | . 28 132 136 120 Thermal 14 | . . . . 14 Explosive 3 | . . . . 3 Electromagnetic . | . . . . . Robot Hit Streak 9 | . 6 9 7 6 Robot Miss Streak 7 | . 1 7 3 3 Penetration Max . | . . . . . Secondary Targets 9 | . . 3 1 5 Max Gunslinging Chain 1 | . . 1 1 1 Shots Hit Robots 226 | . 11 66 66 83 Core Hits 107 | . 5 27 35 40 Critical Kills . | . . . . . Critical Parts Destroyed . | . . . . . Critical Strikes 1 | . . . . 1 Burn 1 | . . . . 1 Melee Attacks . | . . . . . Impact . | . . . . . Slashing . | . . . . . Piercing . | . . . . . Sneak Attacks . | . . . . . Combat Hostiles . | . . . . . Follow-up Attacks . | . . . . . Damage Inflicted 3708 | 5 165 1079 1072 1387 Guns 3509 | . 165 1079 1034 1231 Cannons . | . . . . . Explosions 194 | . . . 38 156 Melee . | . . . . . Ramming 5 | 5 . . . . Kinetic 3364 | . 165 1079 1034 1086 Thermal 145 | . . . . 145 Explosive 194 | . . . 38 156 Electromagnetic . | . . . . . Impact . | . . . . . Slashing . | . . . . . Piercing . | . . . . . Highest Corruption 5 | . . . . 5 Average Corruption 3 | . . . . 3 Corruption Purged . | . . . . . Corruption Blocked . | . . . . . Effects 1 | . . . . 1 Data Loss (minor) 1 | . . . . 1 Overload Shots . | . . . . . Overflow Damage 36 | . . . 30 6 Projectiles . | . . . . . Explosions 36 | . . . 30 6 Melee . | . . . . . Knockbacks . | . . . . . Impact . | . . . . . Kinetic . | . . . . . Secondary . | . . . . . Self-Inflicted Damage 207 | 2 . . 119 86 Shots 4 | . . . 2 2 Rammed 1 | 1 . . . . Targets Rammed 1 | 1 . . . . Kicked . | . . . . . Crushed . | . . . . . Highest Temperature 272 | . 39 162 272 159 Average Temperature 58 | . 12 63 68 53 Received Heat Transfer 702 | . 63 120 99 420 Siege Activations . | . . . . . Martial Activations . | . . . . . Shielding Activations . | . . . . . Robots Disrupted . | . . . . . Combat Hostiles . | . . . . . Robots Corrupted . | . . . . . Combat Hostiles . | . . . . . Parts Fried . | . . . . . Impact Corruptions . | . . . . . Robots Melted . | . . . . . Combat Hostiles . | . . . . . Parts Melted . | . . . . . Heat Transferred 444 | . . . . 444 Parts Sabotaged . | . . . . . Parts Stolen . | . . . . . Parts Stripped . | . . . . . Power Chain Reactions . | . . . . . Alert | -11 -10 -9 -9 -9 ------- Run | Yrd Mat Mat Sto Gar Maximum Alert Level 2 | . . 1 1 2 Low Security (%) 48 | 100 100 87 88 8 Level 1 37 | . . 12 11 64 Level 2 13 | . . . . 27 Level 3 . | . . . . . Level 4 . | . . . . . Level 5 . | . . . . . High Security . | . . . . . Max Security . | . . . . . Peak Influence 644 | . 70 224 225 644 Initial 99 | . . 20 80 99 Average 260 | . 18 105 132 410 Influence Increases 1580 | . 100 392 443 645 Destroy 0b10 Robot/C 940 | . 80 260 220 380 Destroy 0b10 Robot/NC 105 | . . 50 55 . Destroy Leader 184 | . 20 48 96 20 Successful Hack 14 | . . . . 14 Disable Machine 60 | . . 30 30 . Anti-Garrison Action 200 | . . . . 200 Destroy Structure 77 | . . 4 42 31 Influence Decreases 936 | . 50 250 482 154 Entered New Map 196 | . . 30 112 54 Time Decay 620 | . 50 220 350 . Lost Part 120 | . . . 20 100 Squads Dispatched 5 | . 2 2 1 . Investigation 1 | . 1 . . . Extermination . | . . . . . Reinforcement 4 | . 1 2 1 . Assault . | . . . . . Garrison . | . . . . . Intercept . | . . . . . Searches Triggered . | . . . . . Construction Impeded . | . . . . . Haulers Reinforced . | . . . . . Active Scanning Responses . | . . . . . Cargo Convoy Interrupts . | . . . . . Stealth | -11 -10 -9 -9 -9 --------- Run | Yrd Mat Mat Sto Gar Distress Signals 4 | . . 2 2 . Communications Jammed . | . . . . . Distress Signals . | . . . . . Times Spotted 60 | . 5 17 17 21 Peak Tracking Total 6 | . 3 6 5 4 Tactical Retreats . | . . . . . Traps | -11 -10 -9 -9 -9 ------- Run | Yrd Mat Mat Sto Gar Traps Triggered 9 | . 1 . . 8 Indirectly . | . . . . . Trap Hack Attempts . | . . . . . Triggered . | . . . . . Disarmed . | . . . . . Reprogrammed . | . . . . . Reused . | . . . . . Traps Extracted . | . . . . . Installed . | . . . . . Triggered . | . . . . . Machines | -11 -10 -9 -9 -9 ---------- Run | Yrd Mat Mat Sto Gar Machines Disabled 6 | . . 2 2 2 Max in Single Turn 1 | . . 1 1 1 Garrison Relay 2 | . . . . 2 Machines Repaired . | . . . . . Machines Dismantled . | . . . . . Machines Sabotaged . | . . . . . Overloaded Fab Kills . | . . . . . Hacking | -11 -10 -9 -9 -9 --------- Run | Yrd Mat Mat Sto Gar Machines Accessed 6 | . 2 . 3 1 Terminals 3 | . . . 2 1 Fabricators . | . . . . . Repair Stations . | . . . . . Recycling Units 2 | . 2 . . . Scanalyzers . | . . . . . Garrison Access 1 | . . . 1 . Total Hacks 10 | . 5 . 3 2 Successful 7 | . 3 . 3 1 Failed 3 | . 2 . . 1 Catastrophic . | . . . . . Database Lockouts . | . . . . . Manual . | . . . . . Terminals 4 | . . . 2 2 Fabricators . | . . . . . Repair Stations . | . . . . . Recycling Units 5 | . 5 . . . Scanalyzers . | . . . . . Garrison Access 1 | . . . 1 . Terminal Hacks 3 | . . . 2 1 Open Door 2 | . . . 2 . Garrison Registry 1 | . . . . 1 Fabricator Hacks . | . . . . . Repair Station Hacks . | . . . . . Recycling Unit Hacks 3 | . 3 . . . Process 1 | . 1 . . . Retrieve Matter 2 | . 2 . . . Scanalyzer . | . . . . . Garrison Access Hacks 1 | . . . 1 . Unlock Access 1 | . . . 1 . Unauthorized Hacks . | . . . . . Terminals . | . . . . . Fabricators . | . . . . . Repair Stations . | . . . . . Recycling Units . | . . . . . Scanalyzers . | . . . . . Garrison Access . | . . . . . Data Cores Recovered . | . . . . . Used . | . . . . . Hacking Detections 3 | . 1 . 1 1 Full Trace Events 1 | . 1 . . . Feedback Events . | . . . . . Feedback Blocked . | . . . . . Robot Schematics Acquired . | . . . . . Robots Built . | . . . . . Authchips . | . . . . . Time . | . . . . . Total Robot Build Rating . | . . . . . Part Schematics Acquired . | . . . . . Parts Built . | . . . . . Authchips . | . . . . . Time . | . . . . . Total Part Build Rating . | . . . . . Part Studies Acquired . | . . . . . Parts Repaired . | . . . . . Time . | . . . . . Parts Recycled . | . . . . . Recycled Matter 6 | . 6 . . . Retrieved Matter 6 | . 6 . . . Retrieved Components . | . . . . . Parts Scanalyzed . | . . . . . Part Schematics Acquired . | . . . . . Parts Damaged . | . . . . . Bothacking | -11 -10 -9 -9 -9 ------------ Run | Yrd Mat Mat Sto Gar Used RIF Installer 1 | . . . . 1 Robots Hacked . | . . . . . Non-combat . | . . . . . Combat . | . . . . . Robot Hacks Applied . | . . . . . Relay Couplers Released 6 | . . . . 6 Machine Destruction 6 | . . . . 6 Fabnet Peak Effective % . | . . . . . Robots Rewired . | . . . . . Allies Hacked . | . . . . . Hacks Repelled . | . . . . . Allies | -11 -10 -9 -9 -9 -------- Run | Yrd Mat Mat Sto Gar Total Allies . | . . . . . Largest Group . | . . . . . Highest-Rated Group . | . . . . . Highest-Rated Ally . | . . . . . Total Orders . | . . . . . Ally Attacks . | . . . . . Total Damage . | . . . . . Kills . | . . . . . Allies Corrupted . | . . . . . Allies Melted . | . . . . . Intel | -11 -10 -9 -9 -9 ------- Run | Yrd Mat Mat Sto Gar Active Infowar (turns) . | . . . . . Robot Analysis Total . | . . . . . Derelict Logs Recovered . | . . . . . Drone Launches . | . . . . . Drone Recoveries . | . . . . . Exploration | -11 -10 -9 -9 -9 ------------- Run | Yrd Mat Mat Sto Gar Turns Passed 3230 | 52 210 540 782 1646 Spaces Moved 1858 | 49 171 281 439 918 Core 3 | 3 . . . . Treads . | . . . . . Legs . | . . . . . Wheels 1855 | 46 171 281 439 918 Hover . | . . . . . Flight . | . . . . . Fastest Speed 50 | 50 90 90 135 130 Average Speed 143 | 88 90 147 152 151 Slowest Speed 190 | 100 90 155 155 190 Overloaded Moves . | . . . . . Propulsion Burnouts . | . . . . . Robots Hopped . | . . . . . Potential Cave-ins . | . . . . . Cave-ins Triggered . | . . . . . Exploration Rate (%) 40 | 5 41 28 69 61 Regions Visited 4 Branch Regions 1 Pre-discovered Areas . | . . . . . Known Exits Taken 1 | . . . 1 . Unknown Exits Taken 3 | 1 1 1 . . Scrap Searched . | . . . . . Spaces Dug . | . . . . . Terrain Destroyed 54 | . . . 36 18 Melee . | . . . . . Projectile . | . . . . . AOE 54 | . . . 36 18 Terrain Rammed . | . . . . . Walls Destroyed . | . . . . . Machines Disabled . | . . . . . Actions | -11 -10 -9 -9 -9 --------- Run | Yrd Mat Mat Sto Gar Total 2182 | 55 204 351 497 1075 Wait 22 | . . 11 10 1 Move 1855 | 49 170 280 438 918 Hop . | . . . . . Pick Up 38 | 1 10 17 2 8 Fast Attach 13 | 5 2 . 1 5 Attach 11 | . 2 2 . 7 Detach 2 | . . . . 2 Swap 15 | . 2 5 5 3 Drop 24 | . 4 3 7 10 Fire 138 | . 14 33 34 57 Melee . | . . . . . Ram . | . . . . . Kick . | . . . . . Crush . | . . . . . Escape Stasis 64 | . . . . 64 Rewire . | . . . . . Trap . | . . . . . Miscellaneous . | . . . . . Route ------- -11/Scrapyard -10/Materials (discovered 2 exits: [*Mat] / [*Min]) -9/Materials (discovered 2 exits: [*Min] / *Sto) -9/Storage -9/Garrison (discovered 3 exits: [*Rec x3]) History --------- Turn | Location | Event 32 | -11/Scrapyard | Discovered new exit (range 15) 53 | -11/Scrapyard | Entered Materials 186 | -10/Materials | Discovered new exit (range 15) 261 | -10/Materials | Discovered new exit (range 3) 263 | -10/Materials | Entered another Materials area 263 | -9/Materials | Evolved 2 slots: Weapon x2 429 | -9/Materials | Discovered new exit (range 16) 567 | -9/Materials | Build established: Gunner 798 | -9/Materials | Discovered new exit (range 3) 803 | -9/Materials | Entered Storage 1584 | -9/Storage | Identified exit to Garrison 1585 | -9/Storage | Entered Garrison 1677 | -9/Garrison | Triggered checkpoint 1724 | -9/Garrison | Garrison Relay disabled 1793 | -9/Garrison | Triggered checkpoint 1817 | -9/Garrison | Triggered checkpoint 1818 | -9/Garrison | Triggered checkpoint 1872 | -9/Garrison | Lost 3 parts (1p1n1w) 1899 | -9/Garrison | Triggered checkpoint 1900 | -9/Garrison | Core integrity fell below 50% 1941 | -9/Garrison | Core integrity fell below 20% 1945 | -9/Garrison | Lost 3 parts (1u2w) 2142 | -9/Garrison | Discovered new exit (range 10) 2209 | -9/Garrison | Build established: Scavenger-Mutant 2333 | -9/Garrison | Discovered new exit (range 34) 2333 | -9/Garrison | Discovered new exit (range 62) 2333 | -9/Garrison | Discovered new exit (range 45) 2752 | -9/Garrison | Installed Relay Interface Framework 2783 | -9/Garrison | Triggered checkpoint 2794 | -9/Garrison | Build established: Scavenger-Tank 2815 | -9/Garrison | Garrison Relay disabled 3231 | -9/Garrison | Destroyed by P-60 Hacker with Shock Rifle Last Messages --------------- 03036_ Field strength at 60. 03037_ Field strength at 50. 03038_ Field strength at 40. 03039_ Field strength at 30. 03040_ Field strength at 20. 03041_ Field strength at 10. 03042_ Stasis field depleted. 03116_ Dropped Hvy. Assault Rifle. 03126_ Acquired 20 matter. 03130_ Dropped Imp. Ion Engine. 03133_ Dropped Com. Wheel. 03203_ The unstable cave ceiling collapses. 03209_ P-60 Hacker springs to life. 03213_ Com. Wheel destroyed. 03218_ P-60 Hacker destroyed. 03221_ Lgt. Armor Plating destroyed. 03221_ P-60 Hacker destroyed. 03221_ Rocket Launcher destroyed. 03221_ Destroyed Rocket Launcher. 03227_ System corrupted: Component data lost. Map ----- +----------------------------------------------------+ | | | | | | | | | | | | | | | | | ?????????????????????????????????????????????????? | | ?????????????????????????????????????????????????? | | ?????????????????????????????????????????????????? | | ?????????????????????????????????????????????????? | | ?????????????????????????????????????????????????? | | ?????????????????????????????????###?????????????? | | ?????????????????????????????????#"#?????????????? | | ????????????????????????????######"#?????????????? | | ????????????????????????????#""""""#####????????## | | ????????????????????????????#" " #???????### | | ????????????????????????????#" #???????### | | ????????????????????????????#" #???????## | | ????????????????????????????#" " ########### | | ????????????????????#######?#"" """ + | | ????????????????????#!!+!!#### " ### ### | | ????????????????????#! # # #?# #?# | | ????????????????????# p # #?# #?#### | | ????????????????????# @ #?# #??## | | ????????????????????#+#= % ###### ###+##?### | | ????????????????????# #???######### #?### | | ????????????????????#!! ##???######### < #??## | | ????????????????????#### ## #????# #???? | | ???????????????????????##?# #????# #???? | | ??????????????????????????# #????# ##########???? | | #??#######????????????????# ###### #????????????? | | #??#" """#??????????####### ##! # #????????????? | | #####!! ##??????????# ## + ! #????????????? | | ! #??????????## ##### # #????????????? | | #??????????### #???##### #????????????? | | #######++#??????????# #???????# #????????????? | | ??????# #??????????# #???????# ########?????? | | ??????# #??????????# ##???????# ##"""""#?????? | | #######++#######????### ##???????# ## #?????? | | != ^^ #??????# ########## ###+++######## | | * [* ^^ #??##### ^ + | | =!** ^ #??# + ^ + | | ########+### ##?# ### ###+##### ###"""##### ## | | ???????# #?# T#?# #?# #?# #???# #?# + +^#? | | ???????# #?# ##?# #?# ### #???# #?######### #? | | ???????# #?# #??# #?# + ##### #?????????# #? | | ######## #?# ####+### ### + #?????????# #? | | #?# ## ## ### ##### #???????### ## | +----------------------------------------------------+ Best States ------------- Heat Dissipation 28 Energy Generation 14 Energy Capacity 265 Matter Stores 500 Matter Capacity 500 Sight Range 16 Terrain Scan Density 10 Armor Coverage 150 Evasion (%) 42 Item Schematics ----------------- None Robot Schematics ------------------ None Fabricated ------------ Nothing Repaired ---------- Nothing Studied --------- None Alien Tech Used ----------------- None Achievements -------------- None Challenges ------------ None Game ------ Seed AnalysisThermoelectricPower Manual? 0 Play Time 00:19:01 Cumulative 42.0 hours Start 2025.11.01 @ 18:39:43 End 2025.11.01 @ 21:59:41 Sessions 1 Manual Loads 0 Difficulty Rogue Special Mode None Game No. 167 Rogue 167 Adventurer 0 Explorer 0 Win Type - Total 0 Types 0/0/0/0/0/0/0/0/0/0 Lore% 12 Gallery% 33 Achievement% 21 Wizard Run 0 Options --------- Layout 1 ASCII 0 Keyboard 1 Movement Vi Keybinds 0 Fullscreen 1 Font 16/SmallcapsGlow Map View 55x38 Zoom Use 0% Tactical HUD 1 Map Filters NONE Filters NONE Steam 1 RUN: 16f3b801-8266-47ee-807b-8db3f41e65f7